fUSD/lending_fUSD_20250105
["ID","MTS","AMOUNT","RATE_DAILY","PERIOD"]
[347702380,1736074181857,500.0,0.0002,120]
[347702383,1736074231570,-1233.84,7.168e-05,2]
[347702384,1736074231581,-39.21622712,7.253e-05,2]
[347702385,1736074231592,-4300.45377288,7.253e-05,2]
[347702386,1736074231602,-200.0,7.295e-05,2]
[347702387,1736074231613,-300.0,7.308e-05,2]
[347702388,1736074231622,-23480.46424408,7.309e-05,2]
[347702389,1736074231631,-171.61,7.402e-05,2]
[347702390,1736074231641,-2491.33,7.622e-05,2]
[347702391,1736074231650,-250.0,7.622e-05,2]
[347702392,1736074231660,-950.13,7.641e-05,2]
[347702393,1736074231669,-150.0,7.652e-05,2]
[347702394,1736074231678,-150.0,7.671e-05,2]
[347702395,1736074231687,-150.0,7.7e-05,2]
[347702396,1736074231696,-250.0,7.766e-05,2]
[347702397,1736074231705,-1026.04,7.872e-05,2]
[347702398,1736074231715,-150.0,7.896e-05,2]
[347702399,1736074231724,-800.0,7.9e-05,2]
[347702400,1736074231733,-504.98,7.916e-05,2]
[347702401,1736074231742,-150.0,7.958e-05,2]
[347702402,1736074231751,-1700.0,8e-05,2]
[347702403,1736074231760,-420.0,8.039e-05,2]
[347702404,1736074231770,-7720.43,8.058e-05,2]
[347702405,1736074231781,-2427.81,8.162e-05,2]
[347702406,1736074231790,-354.3158243,8.218e-05,2]
[347702407,1736074231799,-2020.76,8.219e-05,2]
[347702408,1736074231809,-1387.24,8.219e-05,2]
[347702409,1736074231818,-2406.59,8.219e-05,2]
[347702410,1736074231828,-501.61670896,8.219e-05,2]
[347702411,1736074231837,-500.0,8.219e-05,2]
[347702412,1736074231847,-1558.72,8.219e-05,2]
[347702413,1736074231857,-500.0,8.219e-05,2]
[347702414,1736074231866,-529.15,8.219e-05,2]
[347702415,1736074231875,-500.0,8.219e-05,2]
[347702416,1736074231884,-1134.57,8.219e-05,2]
[347702417,1736074231893,-500.0,8.219e-05,2]
[347702418,1736074231902,-500.0,8.219e-05,2]
[347702419,1736074231911,-500.0,8.219e-05,2]
[347702420,1736074231920,-1673.22,8.219e-05,2]
[347702421,1736074231929,-500.0,8.219e-05,2]
[347702423,1736074231938,-580.87,8.219e-05,2]
[347702425,1736074231947,-2732.20909025,8.219e-05,2]
[347702432,1736074232065,-1430.94090975,8.219e-05,2]
[347702433,1736074232074,-500.0,8.219e-05,2]
[347702434,1736074232084,-500.0,8.219e-05,2]
[347702435,1736074232094,-500.0,8.219e-05,2]
[347702436,1736074232103,-500.0,8.219e-05,2]
[347702437,1736074232112,-549.76340761,8.219e-05,2]
[347702438,1736074232121,-621.72771856,8.219e-05,2]
[347702439,1736074232136,-1720.94228144,8.219e-05,2]
[347702440,1736074232145,-500.0,8.219e-05,2]
[347702442,1736074232155,-500.0,8.219e-05,2]
[347702443,1736074232164,-500.0,8.219e-05,2]
[347702445,1736074232173,-500.0,8.219e-05,2]
[347702446,1736074232185,-500.0,8.219e-05,2]
[347702447,1736074232195,-500.0,8.219e-05,2]
[347702448,1736074232203,-500.0,8.219e-05,2]
[347702449,1736074232213,-500.0,8.219e-05,2]
[347702450,1736074232223,-500.0,8.219e-05,2]
[347702451,1736074232232,-500.0,8.219e-05,2]
[347702452,1736074232242,-500.0,8.219e-05,2]
[347702453,1736074232251,-500.0,8.219e-05,2]
[347702454,1736074232260,-500.0,8.219e-05,2]
[347702455,1736074232269,-500.0,8.219e-05,2]
[347702456,1736074232278,-500.0,8.219e-05,2]
[347702457,1736074232288,-500.0,8.219e-05,2]
[347702458,1736074232297,-505.44717036,8.219e-05,2]
[347702459,1736074232307,-500.0,8.219e-05,2]
[347702460,1736074232317,-500.0,8.219e-05,2]
[347702461,1736074232326,-500.0,8.219e-05,2]
[347702462,1736074232337,-500.0,8.219e-05,2]
[347702463,1736074232346,-500.0,8.219e-05,2]
[347702464,1736074232358,-500.0,8.219e-05,2]
[347702465,1736074232367,-502.50567572,8.219e-05,2]
[347702466,1736074232377,-500.0,8.219e-05,2]
[347702467,1736074232387,-500.0,8.219e-05,2]
[347702468,1736074232398,-502.72077135,8.219e-05,2]
[347702469,1736074232407,-500.14240008,8.219e-05,2]
[347702470,1736074232417,-500.0,8.219e-05,2]
[347702471,1736074232427,-502.09929352,8.219e-05,2]
[347702472,1736074232439,-500.0,8.219e-05,2]
[347702473,1736074232450,-500.0,8.219e-05,2]
[347702474,1736074232461,-1000.0,8.219e-05,2]
[347702475,1736074232470,-500.0,8.219e-05,2]
[347702476,1736074232481,-500.0,8.219e-05,2]
[347702477,1736074232490,-500.0,8.219e-05,2]
[347702478,1736074232499,-500.0,8.219e-05,2]
[347702479,1736074232508,-500.0,8.219e-05,2]
[347702480,1736074232519,-18.81740753,8.219e-05,2]
[347702481,1736074232535,-481.18259247,8.219e-05,2]
[347702482,1736074232546,-500.0,8.219e-05,2]
[347702483,1736074232555,-575.16006284,8.219e-05,2]
[347702484,1736074232565,-500.00000001,8.219e-05,2]
[347702485,1736074232575,-39.80648326,8.219e-05,2]
[347702486,1736074232647,-223.12793683,8.219e-05,2]
[347702487,1736074232658,-500.0,8.219e-05,2]
[347702488,1736074232667,-500.0,8.219e-05,2]
[347702489,1736074232677,-658.27,8.219e-05,2]
[347702490,1736074232687,-500.0,8.219e-05,2]
[347702491,1736074232696,-500.0,8.219e-05,2]
[347702492,1736074232705,-500.0,8.219e-05,2]
[347702493,1736074232714,-4140.24,8.219e-05,2]
[347702494,1736074232723,-500.0,8.219e-05,2]
[347702495,1736074232732,-500.0,8.219e-05,2]
[347702496,1736074232741,-500.0,8.219e-05,2]
[347702497,1736074232750,-500.0,8.219e-05,2]
[347702498,1736074232764,-500.0,8.219e-05,2]
[347702499,1736074232774,-445.16961526,8.219e-05,2]
[347702500,1736074232783,-500.0,8.219e-05,2]
[347702501,1736074232794,-500.0,8.219e-05,2]
[347702502,1736074232803,-500.0,8.219e-05,2]
[347702503,1736074232812,-500.0,8.219e-05,2]
[347702504,1736074232821,-500.0,8.219e-05,2]
[347702505,1736074232831,-500.0,8.219e-05,2]
[347702506,1736074232840,-500.0,8.219e-05,2]
[347702507,1736074232849,-500.0,8.219e-05,2]
[347702508,1736074232860,-500.0,8.219e-05,2]
[347702509,1736074232869,-500.0,8.219e-05,2]
[347702510,1736074232878,-500.0,8.219e-05,2]
[347702511,1736074232887,-932.92,8.219e-05,2]
[347702512,1736074232898,-500.0,8.219e-05,2]
[347702513,1736074232907,-538.42,8.219e-05,2]
[347702514,1736074232916,-500.0,8.219e-05,2]
[347702515,1736074232925,-619.2724361,8.219e-05,2]
[347702516,1736074232934,-500.0,8.219e-05,2]
[347702517,1736074232944,-500.0,8.219e-05,2]
[347702518,1736074232954,-54.56572569,8.219e-05,2]
[347702519,1736074232968,-445.43427431,8.219e-05,2]
[347702520,1736074232977,-500.0,8.219e-05,2]
[347702521,1736074232986,-500.0,8.219e-05,2]
[347702522,1736074232995,-500.0,8.219e-05,2]
[347702523,1736074233004,-500.0,8.219e-05,2]
[347702524,1736074233014,-500.0,8.219e-05,2]
[347702525,1736074233023,-500.0,8.219e-05,2]
[347702526,1736074233032,-976.91,8.219e-05,2]
[347702527,1736074233041,-500.0,8.219e-05,2]
[347702528,1736074233050,-500.0,8.219e-05,2]
[347702529,1736074233060,-500.0,8.219e-05,2]
[347702530,1736074233069,-500.0,8.219e-05,2]
[347702531,1736074233079,-500.0,8.219e-05,2]
[347702532,1736074233088,-500.0,8.219e-05,2]
[347702533,1736074233097,-500.0,8.219e-05,2]
[347702534,1736074233107,-500.0,8.219e-05,2]
[347702535,1736074233116,-500.0,8.219e-05,2]
[347702536,1736074233125,-502.47791767,8.219e-05,2]
[347702537,1736074233135,-376.86411924,8.219e-05,2]
[347702538,1736074233144,-587.5,8.219e-05,2]
[347702539,1736074233154,-500.0,8.219e-05,2]
[347702540,1736074233163,-500.0,8.219e-05,2]
[347702541,1736074233173,-500.0,8.219e-05,2]
[347702542,1736074233184,-500.0,8.219e-05,2]
[347702543,1736074233201,-500.0,8.219e-05,2]
[347702544,1736074233210,-500.0,8.219e-05,2]
[347702545,1736074233219,-500.0,8.219e-05,2]
[347702546,1736074233229,-500.0,8.219e-05,2]
[347702547,1736074233238,-500.0,8.219e-05,2]
[347702548,1736074233247,-500.0,8.219e-05,2]
[347702549,1736074233257,-500.0,8.219e-05,2]
[347702550,1736074233267,-500.0,8.219e-05,2]
[347702551,1736074233276,-500.0,8.219e-05,2]
[347702552,1736074233286,-500.0,8.219e-05,2]
[347702553,1736074233296,-500.0,8.219e-05,2]
[347702554,1736074233306,-500.0,8.219e-05,2]
[347702555,1736074233316,-500.0,8.219e-05,2]
[347702556,1736074233325,-500.0,8.219e-05,2]
[347702557,1736074233335,-500.0,8.219e-05,2]
[347702558,1736074233344,-500.0,8.219e-05,2]
[347702559,1736074233354,-500.0,8.219e-05,2]
[347702560,1736074233363,-500.0,8.219e-05,2]
[347702561,1736074233373,-500.0,8.219e-05,2]
[347702562,1736074233382,-6229.1,8.219e-05,2]
[347702563,1736074233393,-500.0,8.219e-05,2]
[347702564,1736074233403,-500.0,8.219e-05,2]
[347702565,1736074233412,-500.0,8.219e-05,2]
[347702566,1736074233422,-500.0,8.219e-05,2]
[347702567,1736074233432,-500.0,8.219e-05,2]
[347702568,1736074233442,-500.0,8.219e-05,2]
[347702569,1736074233451,-500.0,8.219e-05,2]
[347702570,1736074233461,-500.0,8.219e-05,2]
[347702571,1736074233470,-500.0,8.219e-05,2]
[347702572,1736074233480,-500.0,8.219e-05,2]
[347702573,1736074233490,-500.0,8.219e-05,2]
[347702574,1736074233499,-583.94576058,8.219e-05,2]
[347702575,1736074233509,-500.0,8.219e-05,2]
[347702576,1736074233518,-500.0,8.219e-05,2]
[347702577,1736074233528,-500.0,8.219e-05,2]
[347702578,1736074233538,-500.0,8.219e-05,2]
[347702579,1736074233547,-410.26513972,8.219e-05,2]
[347702580,1736074233557,-459.85028556,8.219e-05,2]
[347702581,1736074233567,-500.0,8.219e-05,2]
[347702582,1736074233576,-500.0,8.219e-05,2]
[347702583,1736074233586,-507.88,8.219e-05,2]
[347702584,1736074233595,-500.0,8.219e-05,2]
[347702585,1736074233604,-645.64,8.219e-05,2]
[347702586,1736074233614,-500.0,8.219e-05,2]
[347702587,1736074233623,-500.0,8.219e-05,2]
[347702588,1736074233633,-2182.41,8.219e-05,2]
[347702589,1736074233642,-500.0,8.219e-05,2]
[347702590,1736074233651,-500.0,8.219e-05,2]
[347702591,1736074233661,-500.0,8.219e-05,2]
[347702592,1736074233670,-500.0,8.219e-05,2]
[347702593,1736074233679,-500.0,8.219e-05,2]
[347702594,1736074233688,-500.0,8.219e-05,2]
[347702595,1736074233697,-500.0,8.219e-05,2]
[347702596,1736074233706,-738.48,8.219e-05,2]
[347702597,1736074233715,-500.0,8.219e-05,2]
[347702598,1736074233724,-500.0,8.219e-05,2]
[347702599,1736074233733,-918.33,8.219e-05,2]
[347702600,1736074233742,-500.0,8.219e-05,2]
[347702601,1736074233751,-500.0,8.219e-05,2]
[347702602,1736074233762,-514.63736915,8.219e-05,2]
[347702603,1736074233771,-500.0,8.219e-05,2]
[347702604,1736074233780,-1346.41,8.219e-05,2]
[347702605,1736074233789,-500.0,8.219e-05,2]
[347702606,1736074233800,-611.0,8.219e-05,2]
[347702607,1736074233809,-442.7834899,8.219e-05,2]
[347702608,1736074233818,-958.52,8.219e-05,2]
[347702609,1736074233828,-500.0,8.219e-05,2]
[347702610,1736074233838,-500.0,8.219e-05,2]
[347702611,1736074233847,-500.0,8.219e-05,2]
[347702612,1736074233857,-500.0,8.219e-05,2]
[347702613,1736074233867,-500.0,8.219e-05,2]
[347702614,1736074233876,-500.0,8.219e-05,2]
[347702615,1736074233887,-500.0,8.219e-05,2]
[347702616,1736074233896,-500.0,8.219e-05,2]
[347702617,1736074233906,-500.0,8.219e-05,2]
[347702618,1736074233915,-582.69,8.219e-05,2]
[347702619,1736074233924,-500.0,8.219e-05,2]
[347702620,1736074233933,-504.33,8.219e-05,2]
[347702621,1736074233943,-500.0,8.219e-05,2]
[347702622,1736074233952,-288.67219978,8.219e-05,2]
[347702623,1736074233962,-681.11,8.219e-05,2]
[347702624,1736074233971,-500.0,8.219e-05,2]
[347702625,1736074233980,-500.0,8.219e-05,2]
[347702626,1736074233989,-500.0,8.219e-05,2]
[347702627,1736074233998,-500.0,8.219e-05,2]
[347702628,1736074234008,-1139.61,8.219e-05,2]
[347702629,1736074234017,-954.23,8.219e-05,2]
[347702630,1736074234027,-500.0,8.219e-05,2]
[347702631,1736074234036,-593.99,8.219e-05,2]
[347702632,1736074234046,-500.0,8.219e-05,2]
[347702633,1736074234055,-500.0,8.219e-05,2]
[347702634,1736074234064,-500.0,8.219e-05,2]
[347702635,1736074234074,-500.0,8.219e-05,2]
[347702636,1736074234083,-1378.19,8.219e-05,2]
[347702637,1736074234092,-1016.48,8.219e-05,2]
[347702638,1736074234101,-500.0,8.219e-05,2]
[347702639,1736074234110,-500.0,8.219e-05,2]
[347702640,1736074234120,-500.0,8.219e-05,2]
[347702641,1736074234129,-500.0,8.219e-05,2]
[347702642,1736074234138,-500.0,8.219e-05,2]
[347702643,1736074234147,-500.0,8.219e-05,2]
[347702644,1736074234156,-500.0,8.219e-05,2]
[347702645,1736074234166,-500.0,8.219e-05,2]
[347702646,1736074234175,-500.0,8.219e-05,2]
[347702647,1736074234187,-500.0,8.219e-05,2]
[347702648,1736074234426,-500.0,8.219e-05,2]
[347702649,1736074234436,-508.30756083,8.219e-05,2]
[347702650,1736074234445,-623.87,8.219e-05,2]
[347702651,1736074234455,-500.0,8.219e-05,2]
[347702652,1736074234464,-491.14086502,8.219e-05,2]
[347702653,1736074234475,-837.36,8.219e-05,2]
[347702654,1736074234485,-500.0,8.219e-05,2]
[347702655,1736074234495,-500.0,8.219e-05,2]
[347702656,1736074234504,-500.0,8.219e-05,2]
[347702657,1736074234513,-500.0,8.219e-05,2]
[347702658,1736074234522,-500.0,8.219e-05,2]
[347702659,1736074234531,-609.8,8.219e-05,2]
[347702660,1736074234541,-500.0,8.219e-05,2]
[347702661,1736074234550,-500.0,8.219e-05,2]
[347702662,1736074234560,-500.0,8.219e-05,2]
[347702663,1736074234569,-1842.25,8.219e-05,2]
[347702664,1736074234578,-500.0,8.219e-05,2]
[347702665,1736074234588,-500.0,8.219e-05,2]
[347702666,1736074234597,-895.29,8.219e-05,2]
[347702667,1736074234606,-500.0,8.219e-05,2]
[347702668,1736074234615,-500.0,8.219e-05,2]
[347702669,1736074234624,-1284.52,8.219e-05,2]
[347702670,1736074234633,-500.0,8.219e-05,2]
[347702671,1736074234642,-500.0,8.219e-05,2]
[347702672,1736074234651,-1151.63,8.219e-05,2]
[347702673,1736074234660,-500.0,8.219e-05,2]
[347702674,1736074234669,-500.0,8.219e-05,2]
[347702675,1736074234679,-915.73,8.219e-05,2]
[347702676,1736074234687,-500.0,8.219e-05,2]
[347702677,1736074234696,-284.32763586,8.219e-05,2]
[347702678,1736074234705,-500.0,8.219e-05,2]
[347702679,1736074234714,-1975.83,8.219e-05,2]
[347702680,1736074234723,-579.87,8.219e-05,2]
[347702681,1736074234731,-500.0,8.219e-05,2]
[347702682,1736074234740,-1474.12,8.219e-05,2]
[347702683,1736074234749,-500.0,8.219e-05,2]
[347702684,1736074234758,-500.0,8.219e-05,2]
[347702685,1736074234767,-500.0,8.219e-05,2]
[347702686,1736074234776,-901.81,8.219e-05,2]
[347702687,1736074234787,-566.84,8.219e-05,2]
[347702688,1736074234795,-500.0,8.219e-05,2]
[347702689,1736074234805,-500.0,8.219e-05,2]
[347702690,1736074234814,-906.04,8.219e-05,2]
[347702691,1736074234822,-603.85,8.219e-05,2]
[347702692,1736074234831,-797.34,8.219e-05,2]
[347702693,1736074234840,-500.0,8.219e-05,2]
[347702694,1736074234849,-1052.7,8.219e-05,2]
[347702695,1736074234858,-660.43,8.219e-05,2]
[347702696,1736074234867,-500.0,8.219e-05,2]
[347702697,1736074234876,-500.0,8.219e-05,2]
[347702698,1736074234885,-638.87221425,8.219e-05,2]
[347702699,1736074234895,-1026.54,8.219e-05,2]
[347702700,1736074234904,-500.0,8.219e-05,2]
[347702701,1736074234913,-600.71,8.219e-05,2]
[347702702,1736074234922,-500.0,8.219e-05,2]
[347702703,1736074234932,-500.0,8.219e-05,2]
[347702704,1736074234941,-500.0,8.219e-05,2]
[347702705,1736074234949,-500.0,8.219e-05,2]
[347702706,1736074234958,-500.0,8.219e-05,2]
[347702707,1736074234967,-770.38,8.219e-05,2]
[347702708,1736074234976,-500.0,8.219e-05,2]
[347702709,1736074234985,-641.3,8.219e-05,2]
[347702710,1736074234994,-500.0,8.219e-05,2]
[347702711,1736074235004,-500.0,8.219e-05,2]
[347702712,1736074235013,-500.0,8.219e-05,2]
[347702713,1736074235022,-500.0,8.219e-05,2]
[347702714,1736074235031,-580.96,8.219e-05,2]
[347702715,1736074235041,-500.0,8.219e-05,2]
[347702716,1736074235050,-500.0,8.219e-05,2]
[347702717,1736074235059,-500.0,8.219e-05,2]
[347702718,1736074235068,-500.0,8.219e-05,2]
[347702719,1736074235077,-760.64,8.219e-05,2]
[347702720,1736074235087,-500.0,8.219e-05,2]
[347702721,1736074235095,-500.0,8.219e-05,2]
[347702722,1736074235105,-500.0,8.219e-05,2]
[347702723,1736074235114,-500.0,8.219e-05,2]
[347702724,1736074235123,-500.0,8.219e-05,2]
[347702725,1736074235132,-500.0,8.219e-05,2]
[347702726,1736074235140,-500.0,8.219e-05,2]
[347702727,1736074235150,-500.0,8.219e-05,2]
[347702728,1736074235159,-500.0,8.219e-05,2]
[347702729,1736074235167,-1433.28,8.219e-05,2]
[347702730,1736074235176,-1092.64,8.219e-05,2]
[347702731,1736074235187,-500.0,8.219e-05,2]
[347702732,1736074235196,-614.84,8.219e-05,2]
[347702733,1736074235205,-500.0,8.219e-05,2]
[347702734,1736074235214,-562.27,8.219e-05,2]
[347702735,1736074235223,-500.0,8.219e-05,2]
[347702736,1736074235233,-500.0,8.219e-05,2]
[347702737,1736074235245,-531.94,8.219e-05,2]
[347702738,1736074235255,-500.0,8.219e-05,2]
[347702739,1736074235265,-500.0,8.219e-05,2]
[347702740,1736074235274,-500.0,8.219e-05,2]
[347702741,1736074235284,-1664.48,8.219e-05,2]
[347702742,1736074235294,-500.0,8.219e-05,2]
[347702743,1736074235303,-500.0,8.219e-05,2]
[347702744,1736074235312,-1087.22,8.219e-05,2]
[347702745,1736074235322,-500.0,8.219e-05,2]
[347702746,1736074235331,-732.16,8.219e-05,2]
[347702747,1736074235341,-500.0,8.219e-05,2]
[347702748,1736074235350,-500.0,8.219e-05,2]
[347702749,1736074235360,-500.0,8.219e-05,2]
[347702750,1736074235369,-1694.58,8.219e-05,2]
[347702751,1736074235378,-500.0,8.219e-05,2]
[347702752,1736074235387,-838.07,8.219e-05,2]
[347702753,1736074235397,-500.0,8.219e-05,2]
[347702754,1736074235410,-968.97,8.219e-05,2]
[347702755,1736074235419,-500.0,8.219e-05,2]
[347702756,1736074235430,-1007.1,8.219e-05,2]
[347702757,1736074235441,-500.0,8.219e-05,2]
[347702758,1736074235450,-500.0,8.219e-05,2]
[347702759,1736074235460,-500.0,8.219e-05,2]
[347702760,1736074235470,-500.0,8.219e-05,2]
[347702761,1736074235481,-500.0,8.219e-05,2]
[347702762,1736074235490,-500.0,8.219e-05,2]
[347702763,1736074235499,-500.0,8.219e-05,2]
[347702764,1736074235508,-500.0,8.219e-05,2]
[347702765,1736074235518,-500.0,8.219e-05,2]
[347702766,1736074235528,-707.1,8.219e-05,2]
[347702767,1736074235538,-500.0,8.219e-05,2]
[347702768,1736074235547,-1698.26,8.219e-05,2]
[347702769,1736074235557,-696.0,8.219e-05,2]
[347702770,1736074235567,-500.0,8.219e-05,2]
[347702771,1736074235576,-500.0,8.219e-05,2]
[347702772,1736074235586,-536.65,8.219e-05,2]
[347702773,1736074235595,-500.0,8.219e-05,2]
[347702774,1736074235604,-500.0,8.219e-05,2]
[347702775,1736074235613,-500.0,8.219e-05,2]
[347702776,1736074235622,-1341.51,8.219e-05,2]
[347702777,1736074235631,-500.0,8.219e-05,2]
[347702778,1736074235641,-500.0,8.219e-05,2]
[347702779,1736074235650,-500.0,8.219e-05,2]
[347702780,1736074235660,-1472.31,8.219e-05,2]
[347702781,1736074235669,-500.0,8.219e-05,2]
[347702782,1736074235678,-1155.35,8.219e-05,2]
[347702783,1736074235687,-1366.99,8.219e-05,2]
[347702784,1736074235696,-500.0,8.219e-05,2]
[347702785,1736074235706,-500.0,8.219e-05,2]
[347702786,1736074235715,-765.29,8.219e-05,2]
[347702787,1736074235724,-500.0,8.219e-05,2]
[347702788,1736074235733,-1310.03,8.219e-05,2]
[347702789,1736074235742,-500.0,8.219e-05,2]
[347702790,1736074235751,-519.91,8.219e-05,2]
[347702791,1736074235760,-762.83,8.219e-05,2]
[347702792,1736074235769,-500.0,8.219e-05,2]
[347702793,1736074235778,-500.93442923,8.219e-05,2]
[347702794,1736074235787,-500.0,8.219e-05,2]
[347702795,1736074235796,-661.57,8.219e-05,2]
[347702796,1736074235805,-500.0,8.219e-05,2]
[347702797,1736074235814,-500.0,8.219e-05,2]
[347702798,1736074235823,-500.0,8.219e-05,2]
[347702799,1736074235832,-569.96,8.219e-05,2]
[347702800,1736074235841,-500.0,8.219e-05,2]
[347702801,1736074235850,-500.0,8.219e-05,2]
[347702802,1736074235859,-500.0,8.219e-05,2]
[347702803,1736074235869,-500.0,8.219e-05,2]
[347702804,1736074235878,-996.16,8.219e-05,2]
[347702805,1736074235887,-836.86,8.219e-05,2]
[347702806,1736074235895,-634.27,8.219e-05,2]
[347702807,1736074235904,-521.44,8.219e-05,2]
[347702808,1736074235914,-500.0,8.219e-05,2]
[347702809,1736074235923,-500.0,8.219e-05,2]
[347702810,1736074235933,-2502.94,8.219e-05,2]
[347702811,1736074235941,-714.66,8.219e-05,2]
[347702812,1736074235950,-503.37489412,8.219e-05,2]
[347702813,1736074235959,-604.82,8.219e-05,2]
[347702814,1736074235968,-500.0,8.219e-05,2]
[347702815,1736074235978,-500.0,8.219e-05,2]
[347702816,1736074235987,-2546.46,8.219e-05,2]
[347702817,1736074235996,-500.0,8.219e-05,2]
[347702818,1736074236005,-500.0,8.219e-05,2]
[347702819,1736074236014,-525.29,8.219e-05,2]
[347702820,1736074236023,-1078.75,8.219e-05,2]
[347702821,1736074236032,-500.0,8.219e-05,2]
[347702822,1736074236042,-500.0,8.219e-05,2]
[347702823,1736074236052,-534.5,8.219e-05,2]
[347702824,1736074236060,-1898.1,8.219e-05,2]
[347702825,1736074236069,-500.0,8.219e-05,2]
[347702826,1736074236078,-500.0,8.219e-05,2]
[347702827,1736074236087,-500.0,8.219e-05,2]
[347702828,1736074236096,-666.14,8.219e-05,2]
[347702829,1736074236105,-500.0,8.219e-05,2]
[347702830,1736074236114,-744.91,8.219e-05,2]
[347702831,1736074236123,-1161.39,8.219e-05,2]
[347702832,1736074236132,-500.0,8.219e-05,2]
[347702833,1736074236141,-500.0,8.219e-05,2]
[347702834,1736074236150,-509.58,8.219e-05,2]
[347702835,1736074236159,-500.0,8.219e-05,2]
[347702836,1736074236170,-500.0,8.219e-05,2]
[347702837,1736074236179,-500.0,8.219e-05,2]
[347702838,1736074236192,-965.34,8.219e-05,2]
[347702839,1736074236203,-500.0,8.219e-05,2]
[347702840,1736074236212,-500.0,8.219e-05,2]
[347702841,1736074236222,-1891.44,8.219e-05,2]
[347702842,1736074236234,-500.0,8.219e-05,2]
[347702843,1736074236244,-500.0,8.219e-05,2]
[347702844,1736074236253,-500.0,8.219e-05,2]
[347702845,1736074236264,-500.0,8.219e-05,2]
[347702846,1736074236274,-500.0,8.219e-05,2]
[347702847,1736074236284,-794.6,8.219e-05,2]
[347702848,1736074236294,-500.0,8.219e-05,2]
[347702849,1736074236304,-678.09,8.219e-05,2]
[347702850,1736074236313,-887.28,8.219e-05,2]
[347702851,1736074236323,-169.04567279,8.219e-05,2]
[347702852,1736074236760,-330.95432721,8.219e-05,2]
[347702853,1736074236770,-500.0,8.219e-05,2]
[347702854,1736074236780,-731.24,8.219e-05,2]
[347702855,1736074236789,-500.0,8.219e-05,2]
[347702856,1736074236800,-409.1444603,8.219e-05,2]
[347702857,1736074236832,-1000.1419747,8.219e-05,2]
[347702858,1736074236851,-515.24829337,8.219e-05,2]
[347702859,1736074236862,-62.65527163,8.219e-05,2]
[347702860,1736074236872,-485.26418456,8.219e-05,2]
[347702888,1736074238228,-283.34581544,8.219e-05,2]
[347702890,1736074238238,-500.0,8.219e-05,2]
[347702892,1736074238247,-500.0,8.219e-05,2]
[347702894,1736074238256,-758.37,8.219e-05,2]
[347702896,1736074238265,-500.0,8.219e-05,2]
[347702898,1736074238274,-1533.04,8.219e-05,2]
[347702900,1736074238283,-907.49,8.219e-05,2]
[347702902,1736074238293,-500.0,8.219e-05,2]
[347702903,1736074238302,-500.0,8.219e-05,2]
[347702905,1736074238311,-500.0,8.219e-05,2]
[347702907,1736074238320,-734.46338559,8.219e-05,2]
[347703050,1736074239778,-262.01661441,8.219e-05,2]
[347703051,1736074239787,-280.75788561,8.219e-05,2]
[347703052,1736074239799,-933.65211439,8.219e-05,2]
[347703053,1736074239808,-91.31559181,8.219e-05,2]
[347703054,1736074239922,-408.68440819,8.219e-05,2]
[347703055,1736074239931,-500.0,8.219e-05,2]
[347703056,1736074239941,-687.7,8.219e-05,2]
[347703057,1736074239950,-500.0,8.219e-05,2]
[347703058,1736074239959,-1522.46,8.219e-05,2]
[347703059,1736074239968,-500.0,8.219e-05,2]
[347703060,1736074239977,-862.65,8.219e-05,2]
[347703061,1736074239987,-277.65449089,8.219e-05,2]
[347703062,1736074239995,-500.0,8.219e-05,2]
[347703063,1736074240004,-500.0,8.219e-05,2]
[347703064,1736074240013,-500.0,8.219e-05,2]
[347703065,1736074240022,-500.0,8.219e-05,2]
[347703066,1736074240031,-500.0,8.219e-05,2]
[347703067,1736074240040,-500.0,8.219e-05,2]
[347703069,1736074240050,-500.0,8.219e-05,2]
[347703070,1736074240059,-500.0,8.219e-05,2]